Cogmind - Beta 16 @@@ ROGUE MODE // 2026.01.31 @ 17:32:44 Player: vorsii Result: Destroyed by G-34 Mercenary with Small Laser Performance ------------- Evolutions (0) 0 Regions Visited (1) 200 Robots Destroyed (19) 95 Value Destroyed (500) 500 Prototype IDs (0) 0 Alien Tech Used (0) 0 Bonus (0) 0 TOTAL SCORE: 795 Bonus ------- None Cogmind --------- Core Integrity 0/250 Matter 300/300 Energy 250/250 System Corruption 0% Temperature Cool (6) Movement Treading (480) Ox4 Location -10/Materials Parts ------- > --- POWER (1) -------- Ion Engine > --- PROPULSION (2) --- Light Treads > --- UTILITY (2) ------ Huge Storage Unit Signal Interpreter > --- WEAPON (2) ------- Assault Rifle Improved Light Cannon > --- INVENTORY (25) --- Hover Unit Hover Unit Small Storage Unit Signal Interpreter Seismic Detector Light Armor Plating Light Armor Plating Hacking Suite Hacking Suite Improved Light Cannon Improved Light Cannon Improved Light Cannon Mining Laser Peak State ------------ > --- POWER ------------ Ion Engine > --- PROPULSION ------- Light Treads Light Treads > --- UTILITY ---------- Huge Storage Unit Signal Interpreter > --- WEAPON ----------- Assault Rifle Improved Light Cannon > --- INVENTORY -------- Hover Unit Hover Unit Small Storage Unit Signal Interpreter Seismic Detector Light Armor Plating Light Armor Plating Hacking Suite Hacking Suite Improved Light Cannon Improved Light Cannon Improved Light Cannon Mining Laser [Rating: 10] Favorites ----------- Power Light Ion Engine Engine Light Ion Engine Propulsion Light Treads Treads Light Treads Utility Small Storage Unit Storage Small Storage Unit Processor Signal Interpreter Weapon Improved Light Cannon Energy Gun Small Laser Ballistic Gun Assault Rifle Ballistic Cannon Improved Light Cannon Special Weapon Welding Torch Build | -11 -10 ------- Run | Yrd Mat Slots Evolved . | . . Power . | . . Propulsion . | . . Utility . | . . Weapon . | . . Parts Attached 14 | 6 8 Power 3 | 1 2 Engine 3 | 1 2 Core . | . . Reactor . | . . Propulsion 2 | 2 . Treads 2 | 2 . Leg . | . . Wheel . | . . Hover . | . . Flight . | . . Utility 3 | 1 2 Device . | . . Storage 2 | 1 1 Processor 1 | . 1 Hackware . | . . Protection . | . . Artifact . | . . Weapon 6 | 2 4 Energy Gun 2 | 2 . Energy Cannon . | . . Ballistic Gun 1 | . 1 Ballistic Cannon 2 | . 2 Launcher . | . . Special Weapon 1 | . 1 Impact Weapon . | . . Slashing Weapon . | . . Piercing Weapon . | . . Special Melee Weapon . | . . Unidentified Prototypes . | . . Parts Lost 6 | . 6 Power 2 | . 2 Propulsion 1 | . 1 Utility . | . . Weapon 3 | . 3 Highest Loss Streak 2 | . 2 To Critical Strikes . | . . Average Backups 7 | 2 7 Power . | . . Propulsion 1 | . 1 Utility 3 | . 3 Weapon 2 | . 2 Tool/Special . | . . Unused Backups 11 | . 11 Power . | . . Propulsion 2 | . 2 Utility 6 | . 6 Weapon 3 | . 3 Tool/Special . | . . Average Slot Usage (%) 86 | . 86 Engine 11 | . 11 Treads 26 | . 26 Storage 14 | . 14 Processor 7 | . 7 Energy Gun 3 | . 3 Ballistic Gun 9 | . 9 Ballistic Cannon 12 | . 12 Peak Build Rating 10 | 6 10 Average Rating 7 | 3 7 On Entrance 3 | . 6 Avg Prop Armor Cover (%) . | . . Naked Turns . | . . Heaviest Build 91 | 11 91 Greatest Support 40 | 40 40 Greatest Overweight (x) 4 | . 4 Average Overweight (x) . | . . Largest Inventory Capacity 25 | 8 25 Average Capacity 15 | 6 16 Most Carried 13 | 5 13 Average Carried 7 | 2 7 Final Capacity 25 | 8 25 Final Carried 13 | 1 13 Class Distribution -------------------- 100% | Mutant Dominant Class ---------------- Mutant | -10/Materials Resources | -11 -10 ----------- Run | Yrd Mat Matter Collected 682 | 256 426 Remotely . | . . Salvage Created 573 | . 573 Parts 25 | . 25 Haulers Intercepted 1 | . 1 Recyclers Shooed 1 | . 1 Parts Field Recycled . | . . Retrieved Matter . | . . Parts Self-Destructed . | . . Prevented . | . . Parts Restored . | . . Kills | -11 -10 ------- Run | Yrd Mat Combat Hostiles Destroyed 13 | . 13 Guns 9 | . 9 Cannons 4 | . 4 Classes Destroyed 7 | . 7 Builder 1 | . 1 Hauler 1 | . 1 Recycler 1 | . 1 Operator 2 | . 2 Watcher 1 | . 1 Swarmer 3 | . 3 Grunt 10 | . 10 Best Kill Streak 4 | . 4 Combat Bots Only 3 | . 3 Max Kills in Single Turn 1 | . 1 Gunslinging . | . . Exploded . | . . Melee . | . . Uniques/NPCs Destroyed . | . . Combat | -11 -10 -------- Run | Yrd Mat Hostile Shots Fired 107 | . 107 Missed 32 | . 32 Hits 75 | . 75 Projectile 75 | . 75 Critical Strikes 1 | . 1 Damage Taken 884 | . 884 Core 255 | . 255 Absorbed by Shields . | . . Core Remaining (%) 100 | 100 . Volleys Fired 79 | . 79 Largest 2 | . 2 Hottest 80 | . 80 Shots Fired 142 | . 142 Gun 81 | . 81 Cannon 50 | . 50 Launcher . | . . Special 11 | . 11 Kinetic 94 | . 94 Thermal 43 | . 43 Explosive . | . . Electromagnetic 5 | . 5 Robot Hit Streak 16 | . 16 Robot Miss Streak 4 | . 4 Penetration Max . | . . Secondary Targets 1 | . 1 Max Gunslinging Chain 1 | . 1 Shots Hit Robots 87 | . 87 Core Hits 28 | . 28 Critical Kills . | . . Critical Parts Destroyed . | . . Critical Strikes 1 | . 1 Blast 1 | . 1 Melee Attacks . | . . Impact . | . . Slashing . | . . Piercing . | . . Sneak Attacks . | . . Combat Hostiles . | . . Follow-up Attacks . | . . Damage Inflicted 1294 | . 1294 Guns 668 | . 668 Cannons 606 | . 606 Explosions . | . . Melee . | . . Ramming . | . . Kinetic 977 | . 977 Thermal 278 | . 278 Explosive . | . . Electromagnetic 39 | . 39 Impact . | . . Slashing . | . . Piercing . | . . Highest Corruption . | . . Average Corruption . | . . Corruption Purged . | . . Corruption Blocked . | . . Overload Shots . | . . Overflow Damage 13 | . 13 Projectiles 13 | . 13 Explosions . | . . Melee . | . . Knockbacks 4 | . 4 Impact . | . . Kinetic 4 | . 4 Secondary . | . . Self-Inflicted Damage . | . . Shots . | . . Rammed . | . . Targets Rammed . | . . Kicked . | . . Crushed . | . . Highest Temperature 206 | . 206 Average Temperature 71 | . 71 Received Heat Transfer 465 | . 465 Siege Activations . | . . Martial Activations . | . . Shielding Activations . | . . Robots Disrupted . | . . Combat Hostiles . | . . Robots Corrupted . | . . Combat Hostiles . | . . Parts Fried . | . . Impact Corruptions . | . . Robots Melted . | . . Combat Hostiles . | . . Parts Melted 2 | . 2 Heat Transferred 700 | . 700 Parts Sabotaged . | . . Parts Stolen . | . . Parts Stripped . | . . Power Chain Reactions . | . . Alert | -11 -10 ------- Run | Yrd Mat Maximum Alert Level . | . . Low Security (%) 100 | 100 100 Level 1 . | . . Level 2 . | . . Level 3 . | . . Level 4 . | . . Level 5 . | . . High Security . | . . Max Security . | . . Peak Influence 137 | . 137 Initial . | . . Average 18 | . 18 Influence Increases 476 | . 476 Destroy 0b10 Robot/C 260 | . 260 Destroy 0b10 Robot/NC 30 | . 30 Destroy Leader 74 | . 74 Disable Machine 45 | . 45 Destroy Structure 7 | . 7 Lose Combat Pursuer 60 | . 60 Influence Decreases 343 | . 343 Time Decay 313 | . 313 Lost Part 30 | . 30 Squads Dispatched 4 | . 4 Investigation 1 | . 1 Extermination . | . . Reinforcement 3 | . 3 Assault . | . . Garrison . | . . Intercept . | . . Searches Triggered . | . . Construction Impeded . | . . Haulers Reinforced . | . . Active Scanning Responses . | . . Cargo Convoy Interrupts . | . . Stealth | -11 -10 --------- Run | Yrd Mat Distress Signals 3 | . 3 Communications Jammed . | . . Distress Signals . | . . Times Spotted 26 | . 26 Peak Tracking Total 5 | . 5 Tactical Retreats 2 | . 2 Traps | -11 -10 ------- Run | Yrd Mat Traps Triggered 1 | . 1 Indirectly . | . . Trap Hack Attempts . | . . Triggered . | . . Disarmed . | . . Reprogrammed . | . . Reused . | . . Traps Extracted . | . . Installed . | . . Triggered . | . . Machines | -11 -10 ---------- Run | Yrd Mat Machines Disabled 3 | . 3 Max in Single Turn 1 | . 1 Machines Repaired . | . . Machines Dismantled . | . . Machines Sabotaged . | . . Overloaded Fab Kills . | . . Hacking | -11 -10 --------- Run | Yrd Mat Machines Accessed 2 | . 2 Terminals 2 | . 2 Fabricators . | . . Repair Stations . | . . Recycling Units . | . . Scanalyzers . | . . Garrison Access . | . . Total Hacks 7 | . 7 Successful 1 | . 1 Failed 6 | . 6 Catastrophic 1 | . 1 Database Lockouts . | . . Manual . | . . Terminals 7 | . 7 Fabricators . | . . Repair Stations . | . . Recycling Units . | . . Scanalyzers . | . . Garrison Access . | . . Terminal Hacks 1 | . 1 Branch Access Points 1 | . 1 Fabricator Hacks . | . . Repair Station Hacks . | . . Recycling Unit Hacks . | . . Scanalyzer . | . . Garrison Access Hacks . | . . Unauthorized Hacks . | . . Terminals . | . . Fabricators . | . . Repair Stations . | . . Recycling Units . | . . Scanalyzers . | . . Garrison Access . | . . Data Cores Recovered . | . . Used . | . . Hacking Detections 2 | . 2 Full Trace Events 1 | . 1 Feedback Events . | . . Feedback Blocked . | . . Robot Schematics Acquired . | . . Robots Built . | . . Authchips . | . . Time . | . . Total Robot Build Rating . | . . Part Schematics Acquired . | . . Parts Built . | . . Authchips . | . . Time . | . . Total Part Build Rating . | . . Part Studies Acquired . | . . Parts Repaired . | . . Time . | . . Parts Recycled . | . . Recycled Matter . | . . Retrieved Matter . | . . Retrieved Components . | . . Parts Scanalyzed . | . . Part Schematics Acquired . | . . Parts Damaged . | . . Bothacking | -11 -10 ------------ Run | Yrd Mat Used RIF Installer . | . . Robots Hacked . | . . Non-combat . | . . Combat . | . . Robot Hacks Applied . | . . Relay Couplers Released . | . . Fabnet Peak Effective % . | . . Robots Rewired . | . . Allies Hacked . | . . Hacks Repelled . | . . Allies | -11 -10 -------- Run | Yrd Mat Total Allies . | . . Largest Group . | . . Highest-Rated Group . | . . Highest-Rated Ally . | . . Total Orders . | . . Ally Attacks . | . . Total Damage . | . . Kills . | . . Allies Corrupted . | . . Allies Melted . | . . Intel | -11 -10 ------- Run | Yrd Mat Active Infowar (turns) . | . . Robot Analysis Total . | . . Derelict Logs Recovered . | . . Drone Launches . | . . Drone Recoveries . | . . Exploration | -11 -10 ------------- Run | Yrd Mat Turns Passed 1365 | 49 1316 Spaces Moved 495 | 33 462 Core 13 | 13 . Treads 482 | 20 462 Legs . | . . Wheels . | . . Hover . | . . Flight . | . . Fastest Speed 50 | 50 160 Average Speed 213 | 116 219 Slowest Speed 480 | 160 480 Overloaded Moves . | . . Propulsion Burnouts . | . . Robots Hopped . | . . Potential Cave-ins . | . . Cave-ins Triggered . | . . Exploration Rate (%) 40 | 3 77 Regions Visited 1 Branch Regions . Pre-discovered Areas . | . . Known Exits Taken . | . . Unknown Exits Taken 1 | 1 . Scrap Searched . | . . Spaces Dug . | . . Terrain Destroyed 3 | . 3 Melee . | . . Projectile 3 | . 3 AOE . | . . Terrain Rammed . | . . Walls Destroyed . | . . Machines Disabled . | . . Actions | -11 -10 --------- Run | Yrd Mat Total 660 | 43 617 Wait 47 | . 47 Move 494 | 32 462 Hop . | . . Pick Up 23 | 5 18 Fast Attach 2 | 2 . Attach 10 | 4 6 Detach . | . . Swap 5 | . 5 Drop . | . . Fire 79 | . 79 Melee . | . . Ram . | . . Kick . | . . Crush . | . . Escape Stasis . | . . Rewire . | . . Trap . | . . Miscellaneous . | . . Route ------- -11/Scrapyard -10/Materials (discovered 5 exits: [*Mat x3] / *Min x2) History --------- Turn | Location | Event 9 | -11/Scrapyard | Discovered new exit (range 16) 50 | -11/Scrapyard | Entered Materials 291 | -10/Materials | Core integrity fell below 50% 301 | -10/Materials | Build established: Mutant 432 | -10/Materials | Identified exit to Mines 511 | -10/Materials | Discovered new exit (range 7) 926 | -10/Materials | Core integrity fell below 20% 967 | -10/Materials | Discovered new exit (range 8) 1173 | -10/Materials | Discovered new exit (range 3) 1366 | -10/Materials | Destroyed by G-34 Mercenary with Small Laser Last Messages --------------- 01260_ G-47 Trooper destroyed. 01261_ U-05 Engineer builds a Door. 01263_ Acquired 37 matter. 01282_ U-05 Engineer destroyed. 01290_ Acquired 7 matter. 01290_ W-16 Scout sends out distress signal. 01295_ R-06 Scavenger collects Particle Gun. 01296_ Acquired 7 matter. 01302_ Acquired 3 matter. 01317_ G-34 Mercenary destroyed. 01319_ R-06 Scavenger collects Aluminum Leg. 01320_ R-06 Scavenger destroyed. 01323_ Acquired 25 matter. 01337_ Hadron Collector disabled. 01343_ G-47 Trooper knocked back. 01344_ U-05 Engineer builds a Door. 01346_ G-47 Trooper destroyed. 01349_ Acquired 5 matter. 01354_ Acquired 23 matter. 01354_ U-05 Engineer builds a Door. Map ----- +----------------------------------------------------+ | #####/###### ## "Y #???????????? | | ^^ #??# ?????# ## "" ###?????????? | | ####??#####??# ?????# ## # ?????????? | | #????????????# ?????# ## # #?######### | | #????????????? ??????# #####+### #?# # | | #????????????? ??????# #???# #?# #?# # | | #????????????????????# #???# #?# #?# % # | | #####????????????##+## ##### ### ### # | | ????????? # # | | ??>????? % + # | | ???????? % # # | | ###?????????????###+####+#### # # # | | ##????????????????????? ????# # # # | | #????????????????????# ?????#! !# # # | | #????????????????????#???????##!!!!## # # | | ? #?????????????????????????????####### ######### | | ??#???????????????????????????????????# #???????? | | ??????????????????????????????????????# #???????? | | ???????????????????#############??????# #???????? | | ???????????????????# #??????# #???????? | | ???????????????????# === """ #??????# #???????? | | ???????????????????# === "T" #??????# #???????? | | ???????????????????# == g #??????# #???????? | | ???????????????????# #??????# #???????? | | ???????????????????# #??????#%#???????? | | ???????????????????# @% #??????# #???????? | | ????????????????#########/#########?###/#???????? | | ????????????????# u=% #?# #???????? | | ?????????????" + ==! #?# #???????? | | ????????????????# %[% #?# #???????? | | ????????????????### """ #### #?# #???????? | | ??????????????????# ^ """ #??# #?# #???????? | | ??????????????????# """ #??# #?# #???????? | | ??????????????????# #?## ### #???????? | | ????????????????? #?# ###+####?????? | | ???????????????? #?# #?????? | | ??????????????? #?# > < #?????? | | ???????????????###+####### #?# #?????? | | ?????????????????????????? #?# ########?????? | | ?????????????????????????? #?#######????????????? | | ?????????????????????????? #????????????????????? | | ?????????????????????????? ????????????????????? | | ??????????????????????????]?????????????????????? | | ??????????????????????????]?????????????????????? | | ????????????????????????????????????????????????? | | ????????????????????????????????????????????????? | | | | | | | | | +----------------------------------------------------+ Best States ------------- Heat Dissipation 25 Energy Generation 10 Energy Capacity 250 Matter Stores 300 Matter Capacity 300 Sight Range 16 Terrain Scan Density 10 Evasion (%) 50 Recoil Reduction 2 Item Schematics ----------------- None Robot Schematics ------------------ None Fabricated ------------ Nothing Repaired ---------- Nothing Studied --------- None Alien Tech Used ----------------- None Achievements -------------- None Challenges ------------ None Game ------ Seed ComponentStoragePower Manual? 0 Play Time 00:12:18 Cumulative 27.2 hours Start 2026.01.31 @ 17:19:15 End 2026.01.31 @ 17:32:44 Sessions 1 Manual Loads 0 Difficulty Rogue Special Mode None Game No. 37 Rogue 37 Adventurer 0 Explorer 0 Win Type - Total 0 Types 0/0/0/0/0/0/0/0/0/0 Lore% 22 Gallery% 19 Achievement% 17 Wizard Run 0 Options --------- Layout 0 ASCII 0 Keyboard 0 Movement Mouse Keybinds 0 Fullscreen 1 Font 36/Smallcaps Map View 76x50 Zoom Use 0% Tactical HUD 1 Map Filters NONE Filters NONE Steam 1 RUN: 33b02402-a629-4801-b28a-562e7dad4d5d